Cogmind - Beta 16 @@@ ROGUE MODE // 2026.02.04 @ 11:21:59 Player: quak Result: Destroyed by B-75 Beast with Heavy Machine Gun Performance ------------- Evolutions (5) 2500 Regions Visited (10) 2000 Robots Destroyed (0) 0 Value Destroyed (0) 0 Prototype IDs (0) 0 Alien Tech Used (0) 0 Bonus (2087) 2087 TOTAL SCORE: 6587 Bonus ------- Pacifist 1787 Aligned with FarCom 300 Cogmind --------- Core Integrity 0/1000 Matter 300/300 Energy 99/100 System Corruption 0% Temperature Cool (12) Movement Core (50) Location -5/Upper Caves Parts ------- > --- POWER (11) ------- (None) > --- PROPULSION (2) --- (None) > --- UTILITY (2) ------ (None) > --- WEAPON (2) ------- (None) > --- INVENTORY (5) ---- (None) Peak State ------------ None Favorites ----------- Power None Propulsion None Utility None Weapon None Build | -11 -10 -10 -10 -9 -8 -7 -6 -5 -5 -5 ------- Run | Yrd Mat Min Exi Min Mat Fac Fac Fac Upp Upp Slots Evolved 10 | . . . . . 4 2 2 2 . . Power 10 | . . . . . 4 2 2 2 . . Propulsion . | . . . . . . . . . . . Utility . | . . . . . . . . . . . Weapon . | . . . . . . . . . . . Parts Attached . | . . . . . . . . . . . Power . | . . . . . . . . . . . Engine . | . . . . . . . . . . . Core . | . . . . . . . . . . . Reactor . | . . . . . . . . . . . Propulsion . | . . . . . . . . . . . Treads . | . . . . . . . . . . . Leg . | . . . . . . . . . . . Wheel . | . . . . . . . . . . . Hover . | . . . . . . . . . . . Flight . | . . . . . . . . . . . Utility . | . . . . . . . . . . . Device . | . . . . . . . . . . . Storage . | . . . . . . . . . . . Processor . | . . . . . . . . . . . Hackware . | . . . . . . . . . . . Protection . | . . . . . . . . . . . Artifact . | . . . . . . . . . . . Weapon . | . . . . . . . . . . . Energy Gun . | . . . . . . . . . . . Energy Cannon . | . . . . . . . . . . . Ballistic Gun . | . . . . . . . . . . . Ballistic Cannon . | . . . . . . . . . . . Launcher . | . . . . . . . . . . . Special Weapon . | . . . . . . . . . . . Impact Weapon . | . . . . . . . . . . . Slashing Weapon . | . . . . . . . . . . . Piercing Weapon . | . . . . . . . . . . . Special Melee Weapon . | . . . . . . . . . . . Unidentified Prototypes . | . . . . . . . . . . . Parts Lost . | . . . . . . . . . . . Power . | . . . . . . . . . . . Propulsion . | . . . . . . . . . . . Utility . | . . . . . . . . . . . Weapon . | . . . . . . . . . . . Highest Loss Streak . | . . . . . . . . . . . To Critical Strikes . | . . . . . . . . . . . Average Backups . | . . . . . . . . . . . Power . | . . . . . . . . . . . Propulsion . | . . . . . . . . . . . Utility . | . . . . . . . . . . . Weapon . | . . . . . . . . . . . Tool/Special . | . . . . . . . . . . . Unused Backups . | . . . . . . . . . . . Power . | . . . . . . . . . . . Propulsion . | . . . . . . . . . . . Utility . | . . . . . . . . . . . Weapon . | . . . . . . . . . . . Tool/Special . | . . . . . . . . . . . Average Slot Usage (%) . | . . . . . . . . . . . Peak Build Rating . | . . . . . . . . . . . Average Rating . | . . . . . . . . . . . On Entrance . | . . . . . . . . . . . Avg Prop Armor Cover (%) . | . . . . . . . . . . . Naked Turns 1280 | . 56 234 76 29 70 140 113 304 187 71 Heaviest Build . | . . . . . . . . . . . Greatest Support 3 | 3 3 3 3 3 3 3 3 3 3 3 Greatest Overweight (x) . | . . . . . . . . . . . Average Overweight (x) . | . . . . . . . . . . . Largest Inventory Capacity 5 | 5 5 5 5 5 5 5 5 5 5 5 Average Capacity 5 | 5 5 5 5 5 5 5 5 5 5 5 Most Carried . | . . . . . . . . . . . Average Carried . | . . . . . . . . . . . Final Capacity 5 | 5 5 5 5 5 5 5 5 5 5 5 Final Carried . | . . . . . . . . . . . Class Distribution -------------------- 100% | Mutant Dominant Class ---------------- Mutant | -10/Materials Mutant | -10/Mines Mutant | -10/Exiles Mutant | -9/Mines Mutant | -8/Materials Mutant | -7/Factory Mutant | -6/Factory Mutant | -5/Factory Mutant | -5/Upper Caves Mutant | -5/Upper Caves Resources | -11 -10 -10 -10 -9 -8 -7 -6 -5 -5 -5 ----------- Run | Yrd Mat Min Exi Min Mat Fac Fac Fac Upp Upp Matter Collected 184 | . . 89 . . 95 . . . . . Remotely . | . . . . . . . . . . . Salvage Created . | . . . . . . . . . . . Parts . | . . . . . . . . . . . Haulers Intercepted . | . . . . . . . . . . . Recyclers Shooed . | . . . . . . . . . . . Parts Field Recycled . | . . . . . . . . . . . Retrieved Matter . | . . . . . . . . . . . Parts Self-Destructed 2 | . . . . . . . . . 2 . Prevented 1 | . . . . . . . . . . 1 Parts Restored . | . . . . . . . . . . . Kills | -11 -10 -10 -10 -9 -8 -7 -6 -5 -5 -5 ------- Run | Yrd Mat Min Exi Min Mat Fac Fac Fac Upp Upp Combat Hostiles Destroyed . | . . . . . . . . . . . Classes Destroyed . | . . . . . . . . . . . Best Kill Streak . | . . . . . . . . . . . Combat Bots Only . | . . . . . . . . . . . Max Kills in Single Turn . | . . . . . . . . . . . Gunslinging . | . . . . . . . . . . . Exploded . | . . . . . . . . . . . Melee . | . . . . . . . . . . . Uniques/NPCs Destroyed . | . . . . . . . . . . . Combat | -11 -10 -10 -10 -9 -8 -7 -6 -5 -5 -5 -------- Run | Yrd Mat Min Exi Min Mat Fac Fac Fac Upp Upp Hostile Shots Fired 111 | . 4 15 . . . . 17 10 26 39 Missed 40 | . 1 7 . . . . 8 3 10 11 Hits 71 | . 3 8 . . . . 9 7 16 28 Projectile 71 | . 3 8 . . . . 9 7 16 28 Critical Strikes 5 | . . . . . . . 1 1 3 . Damage Taken 1396 | . 35 144 . . . . 197 96 318 606 Core 1396 | . 35 144 . . . . 197 96 318 606 Absorbed by Shields . | . . . . . . . . . . . Core Remaining (%) 80 | 100 . . . 28 100 100 76 . . . Volleys Fired . | . . . . . . . . . . . Largest . | . . . . . . . . . . . Hottest . | . . . . . . . . . . . Shots Fired . | . . . . . . . . . . . Gun . | . . . . . . . . . . . Cannon . | . . . . . . . . . . . Launcher . | . . . . . . . . . . . Special . | . . . . . . . . . . . Kinetic . | . . . . . . . . . . . Thermal . | . . . . . . . . . . . Explosive . | . . . . . . . . . . . Electromagnetic . | . . . . . . . . . . . Robot Hit Streak . | . . . . . . . . . . . Robot Miss Streak . | . . . . . . . . . . . Penetration Max . | . . . . . . . . . . . Secondary Targets . | . . . . . . . . . . . Shots Hit Robots . | . . . . . . . . . . . Core Hits 1 | . . 1 . . . . . . . . Critical Kills . | . . . . . . . . . . . Critical Parts Destroyed . | . . . . . . . . . . . Critical Strikes . | . . . . . . . . . . . Melee Attacks . | . . . . . . . . . . . Impact . | . . . . . . . . . . . Slashing . | . . . . . . . . . . . Piercing . | . . . . . . . . . . . Sneak Attacks . | . . . . . . . . . . . Combat Hostiles . | . . . . . . . . . . . Follow-up Attacks . | . . . . . . . . . . . Damage Inflicted 37 | . . 31 . . . . . . . 6 Guns . | . . . . . . . . . . . Cannons . | . . . . . . . . . . . Explosions . | . . . . . . . . . . . Melee . | . . . . . . . . . . . Ramming 37 | . . 31 . . . . . . . 6 Kinetic . | . . . . . . . . . . . Thermal . | . . . . . . . . . . . Explosive . | . . . . . . . . . . . Electromagnetic . | . . . . . . . . . . . Impact . | . . . . . . . . . . . Slashing . | . . . . . . . . . . . Piercing . | . . . . . . . . . . . Highest Corruption . | . . . . . . . . . . . Average Corruption . | . . . . . . . . . . . Corruption Purged . | . . . . . . . . . . . Corruption Blocked . | . . . . . . . . . . . Overload Shots . | . . . . . . . . . . . Overflow Damage . | . . . . . . . . . . . Projectiles . | . . . . . . . . . . . Explosions . | . . . . . . . . . . . Melee . | . . . . . . . . . . . Knockbacks . | . . . . . . . . . . . Impact . | . . . . . . . . . . . Kinetic . | . . . . . . . . . . . Secondary . | . . . . . . . . . . . Self-Inflicted Damage 16 | . . 14 . . . . . . . 2 Shots . | . . . . . . . . . . . Rammed 7 | . . 5 . . . . . . . 2 Targets Rammed 7 | . . 5 . . . . . . . 2 Kicked . | . . . . . . . . . . . Crushed . | . . . . . . . . . . . Highest Temperature . | . . . . . . . . . . . Average Temperature . | . . . . . . . . . . . Received Heat Transfer 294 | . 21 54 . . . . . 27 108 84 Siege Activations . | . . . . . . . . . . . Martial Activations . | . . . . . . . . . . . Shielding Activations . | . . . . . . . . . . . Robots Disrupted . | . . . . . . . . . . . Combat Hostiles . | . . . . . . . . . . . Robots Corrupted . | . . . . . . . . . . . Combat Hostiles . | . . . . . . . . . . . Parts Fried . | . . . . . . . . . . . Impact Corruptions . | . . . . . . . . . . . Robots Melted . | . . . . . . . . . . . Combat Hostiles . | . . . . . . . . . . . Parts Melted . | . . . . . . . . . . . Heat Transferred . | . . . . . . . . . . . Parts Sabotaged . | . . . . . . . . . . . Parts Stolen . | . . . . . . . . . . . Parts Stripped . | . . . . . . . . . . . Power Chain Reactions . | . . . . . . . . . . . Alert | -11 -10 -10 -10 -9 -8 -7 -6 -5 -5 -5 ------- Run | Yrd Mat Min Exi Min Mat Fac Fac Fac Upp Upp Maximum Alert Level . | . . . . . . . . . . . Low Security (%) 100 | 100 100 100 . 100 100 100 100 100 . . Level 1 . | . . . . . . . . . . . Level 2 . | . . . . . . . . . . . Level 3 . | . . . . . . . . . . . Level 4 . | . . . . . . . . . . . Level 5 . | . . . . . . . . . . . High Security . | . . . . . . . . . . . Max Security . | . . . . . . . . . . . Peak Influence 45 | . 18 30 . . . 15 30 45 . . Initial 14 | . . 3 . . . . . 14 . . Average 7 | . 8 6 . . . 2 3 14 . . Influence Increases 282 | . 18 60 . . . 20 44 125 15 . Successful Hack 42 | . 18 . . . . 5 14 5 . . Partial Spotted 15 | . . . . . . 15 . . . . Lose Combat Pursuer 225 | . . 60 . . . . 30 120 15 . Influence Decreases 282 | . 10 68 . . . 20 14 125 40 5 Entered New Map 35 | . . 5 . . . . . 16 12 2 Time Decay 247 | . 10 63 . . . 20 14 109 28 3 Squads Dispatched 2 | . . . . . 2 . . . . . Investigation . | . . . . . . . . . . . Extermination . | . . . . . . . . . . . Reinforcement 2 | . . . . . 2 . . . . . Assault . | . . . . . . . . . . . Garrison . | . . . . . . . . . . . Intercept . | . . . . . . . . . . . Searches Triggered . | . . . . . . . . . . . Construction Impeded . | . . . . . . . . . . . Haulers Reinforced . | . . . . . . . . . . . Active Scanning Responses . | . . . . . . . . . . . Cargo Convoy Interrupts . | . . . . . . . . . . . Stealth | -11 -10 -10 -10 -9 -8 -7 -6 -5 -5 -5 --------- Run | Yrd Mat Min Exi Min Mat Fac Fac Fac Upp Upp Distress Signals 1 | . . . . . . . . 1 . . Communications Jammed . | . . . . . . . . . . . Distress Signals . | . . . . . . . . . . . Times Spotted 56 | . 4 15 . . 1 2 6 11 8 9 Peak Tracking Total 11 | . 4 11 . . 1 2 7 4 5 8 Tactical Retreats 8 | . . 2 . . . . 1 4 1 . Traps | -11 -10 -10 -10 -9 -8 -7 -6 -5 -5 -5 ------- Run | Yrd Mat Min Exi Min Mat Fac Fac Fac Upp Upp Traps Triggered 1 | . . . . . . 1 . . . . Indirectly . | . . . . . . . . . . . Trap Hack Attempts . | . . . . . . . . . . . Triggered . | . . . . . . . . . . . Disarmed . | . . . . . . . . . . . Reprogrammed . | . . . . . . . . . . . Reused . | . . . . . . . . . . . Traps Extracted . | . . . . . . . . . . . Installed . | . . . . . . . . . . . Triggered . | . . . . . . . . . . . Machines | -11 -10 -10 -10 -9 -8 -7 -6 -5 -5 -5 ---------- Run | Yrd Mat Min Exi Min Mat Fac Fac Fac Upp Upp Machines Disabled . | . . . . . . . . . . . Max in Single Turn . | . . . . . . . . . . . Machines Repaired . | . . . . . . . . . . . Machines Dismantled . | . . . . . . . . . . . Machines Sabotaged . | . . . . . . . . . . . Overloaded Fab Kills . | . . . . . . . . . . . Hacking | -11 -10 -10 -10 -9 -8 -7 -6 -5 -5 -5 --------- Run | Yrd Mat Min Exi Min Mat Fac Fac Fac Upp Upp Machines Accessed 8 | . 1 . . . . 3 3 1 . . Terminals 6 | . 1 . . . . 2 2 1 . . Fabricators . | . . . . . . . . . . . Repair Stations . | . . . . . . . . . . . Recycling Units . | . . . . . . . . . . . Scanalyzers . | . . . . . . . . . . . Garrison Access 2 | . . . . . . 1 1 . . . Total Hacks 18 | . 4 . . . . 6 6 2 . . Successful 8 | . 4 . . . . 2 1 1 . . Failed 10 | . . . . . . 4 5 1 . . Catastrophic . | . . . . . . . . . . . Database Lockouts . | . . . . . . . . . . . Manual 15 | . 4 . . . . 4 5 2 . . Terminals 16 | . 4 . . . . 5 5 2 . . Fabricators . | . . . . . . . . . . . Repair Stations . | . . . . . . . . . . . Recycling Units . | . . . . . . . . . . . Scanalyzers . | . . . . . . . . . . . Garrison Access 2 | . . . . . . 1 1 . . . Terminal Hacks 3 | . 2 . . . . 1 . . . . Open DSF 1 | . . . . . . 1 . . . . Branch Access Points 1 | . 1 . . . . . . . . . Zone Layout 1 | . 1 . . . . . . . . . Fabricator Hacks . | . . . . . . . . . . . Repair Station Hacks . | . . . . . . . . . . . Recycling Unit Hacks . | . . . . . . . . . . . Scanalyzer . | . . . . . . . . . . . Garrison Access Hacks . | . . . . . . . . . . . Unauthorized Hacks 5 | . 2 . . . . 1 1 1 . . Terminals 5 | . 2 . . . . 1 1 1 . . Track 1 | . 1 . . . . . . . . . Botnet 4 | . 1 . . . . 1 1 1 . . Fabricators . | . . . . . . . . . . . Repair Stations . | . . . . . . . . . . . Recycling Units . | . . . . . . . . . . . Scanalyzers . | . . . . . . . . . . . Garrison Access . | . . . . . . . . . . . Data Cores Recovered . | . . . . . . . . . . . Used . | . . . . . . . . . . . Hacking Detections 6 | . 1 . . . . 1 3 1 . . Full Trace Events . | . . . . . . . . . . . Feedback Events . | . . . . . . . . . . . Feedback Blocked . | . . . . . . . . . . . Robot Schematics Acquired . | . . . . . . . . . . . Robots Built . | . . . . . . . . . . . Authchips . | . . . . . . . . . . . Time . | . . . . . . . . . . . Total Robot Build Rating . | . . . . . . . . . . . Part Schematics Acquired . | . . . . . . . . . . . Parts Built . | . . . . . . . . . . . Authchips . | . . . . . . . . . . . Time . | . . . . . . . . . . . Total Part Build Rating . | . . . . . . . . . . . Part Studies Acquired . | . . . . . . . . . . . Parts Repaired . | . . . . . . . . . . . Time . | . . . . . . . . . . . Parts Recycled . | . . . . . . . . . . . Recycled Matter . | . . . . . . . . . . . Retrieved Matter . | . . . . . . . . . . . Retrieved Components . | . . . . . . . . . . . Parts Scanalyzed . | . . . . . . . . . . . Part Schematics Acquired . | . . . . . . . . . . . Parts Damaged . | . . . . . . . . . . . Bothacking | -11 -10 -10 -10 -9 -8 -7 -6 -5 -5 -5 ------------ Run | Yrd Mat Min Exi Min Mat Fac Fac Fac Upp Upp Used RIF Installer . | . . . . . . . . . . . Robots Hacked . | . . . . . . . . . . . Non-combat . | . . . . . . . . . . . Combat . | . . . . . . . . . . . Robot Hacks Applied . | . . . . . . . . . . . Relay Couplers Released . | . . . . . . . . . . . Fabnet Peak Effective % . | . . . . . . . . . . . Robots Rewired . | . . . . . . . . . . . Allies Hacked . | . . . . . . . . . . . Hacks Repelled . | . . . . . . . . . . . Allies | -11 -10 -10 -10 -9 -8 -7 -6 -5 -5 -5 -------- Run | Yrd Mat Min Exi Min Mat Fac Fac Fac Upp Upp Total Allies 2 | . . 2 . . . . . . . . Largest Group 2 | . . 2 . . . . . . . . Highest-Rated Group 43 | . . 43 . . . . . . . . Highest-Rated Ally 31 | . . 31 . . . . . . . . Total Orders . | . . . . . . . . . . . Ally Attacks 6 | . . 6 . . . . . . . . Total Damage 62 | . . 62 . . . . . . . . Kills . | . . . . . . . . . . . Allies Corrupted . | . . . . . . . . . . . Allies Melted 2 | . . . . . . . . . 2 . Intel | -11 -10 -10 -10 -9 -8 -7 -6 -5 -5 -5 ------- Run | Yrd Mat Min Exi Min Mat Fac Fac Fac Upp Upp Active Infowar (turns) . | . . . . . . . . . . . Robot Analysis Total . | . . . . . . . . . . . Derelict Logs Recovered 4 | . . 2 . 1 . . . . 1 . Drone Launches . | . . . . . . . . . . . Drone Recoveries . | . . . . . . . . . . . Exploration | -11 -10 -10 -10 -9 -8 -7 -6 -5 -5 -5 ------------- Run | Yrd Mat Min Exi Min Mat Fac Fac Fac Upp Upp Turns Passed 1289 | 9 56 234 76 29 70 140 113 304 187 71 Spaces Moved 2246 | 18 112 449 152 58 118 280 226 322 374 137 Core 2246 | 18 112 449 152 58 118 280 226 322 374 137 Treads . | . . . . . . . . . . . Legs . | . . . . . . . . . . . Wheels . | . . . . . . . . . . . Hover . | . . . . . . . . . . . Flight . | . . . . . . . . . . . Fastest Speed 50 | 50 50 50 50 50 50 50 50 50 50 50 Average Speed 50 | 50 50 50 50 50 50 50 50 50 50 50 Slowest Speed 50 | 50 50 50 50 50 50 50 50 50 50 50 Overloaded Moves . | . . . . . . . . . . . Propulsion Burnouts . | . . . . . . . . . . . Robots Hopped . | . . . . . . . . . . . Potential Cave-ins . | . . . . . . . . . . . Cave-ins Triggered . | . . . . . . . . . . . Exploration Rate (%) 32 | 2 32 91 56 35 15 10 10 13 60 35 Regions Visited 10 Branch Regions 5 Pre-discovered Areas 3 | . . 2 . 1 . . . . . . Known Exits Taken 1 | . 1 . . . . . . . . . Unknown Exits Taken 9 | 1 . 1 1 1 1 1 1 1 1 . Scrap Searched 1 | . . 1 . . . . . . . . Spaces Dug . | . . . . . . . . . . . Terrain Destroyed . | . . . . . . . . . . . Melee . | . . . . . . . . . . . Projectile . | . . . . . . . . . . . AOE . | . . . . . . . . . . . Terrain Rammed . | . . . . . . . . . . . Walls Destroyed . | . . . . . . . . . . . Machines Disabled . | . . . . . . . . . . . Actions | -11 -10 -10 -10 -9 -8 -7 -6 -5 -5 -5 --------- Run | Yrd Mat Min Exi Min Mat Fac Fac Fac Upp Upp Total 2401 | 17 111 457 151 57 128 279 225 464 373 139 Wait 158 | . . 4 . . 11 . . 143 . . Move 2236 | 17 111 448 151 57 117 279 225 321 373 137 Hop . | . . . . . . . . . . . Pick Up . | . . . . . . . . . . . Fast Attach . | . . . . . . . . . . . Attach . | . . . . . . . . . . . Detach . | . . . . . . . . . . . Swap . | . . . . . . . . . . . Drop . | . . . . . . . . . . . Fire . | . . . . . . . . . . . Melee . | . . . . . . . . . . . Ram 7 | . . 5 . . . . . . . 2 Kick . | . . . . . . . . . . . Crush . | . . . . . . . . . . . Escape Stasis . | . . . . . . . . . . . Rewire . | . . . . . . . . . . . Trap . | . . . . . . . . . . . Miscellaneous . | . . . . . . . . . . . Route ------- -11/Scrapyard -10/Materials (discovered 3 exits: [*Mat] / *Min x2) -10/Mines (discovered 3 exits: [*Mat x2] / [*Exi]) -10/Exiles -9/Mines -8/Materials -7/Factory -6/Factory -5/Factory -5/Upper Caves -5/Upper Caves (discovered 1 exit: [*Zhi]) History --------- Turn | Location | Event 3 | -11/Scrapyard | Discovered new exit (range 15) 10 | -11/Scrapyard | Entered Materials 30 | -10/Materials | Identified exit to Mines 51 | -10/Materials | Discovered new exit (range 6) 66 | -10/Materials | Entered Mines 73 | -10/Mines | Learned location of Zion (-6) 88 | -10/Mines | Learned location of Recycling (-7) 129 | -10/Mines | Assembled infested the area 129 | -10/Mines | Discovered new exit (range 13) 207 | -10/Mines | Discovered new exit (range 5) 215 | -10/Mines | Core integrity fell below 50% 297 | -10/Mines | Deemed a non-threat by the Exiles lab entrance 298 | -10/Mines | Discovered new exit (range 5) 300 | -10/Mines | Entered Exiles 305 | -10/Exiles | Build established: Mutant 313 | -10/Exiles | Met 8R-AWN 322 | -10/Exiles | Met EX-HEX 335 | -10/Exiles | Met EX-BIN 341 | -10/Exiles | Aligned with FarCom system 341 | -10/Exiles | Given EX-Vault access code 355 | -10/Exiles | Met EX-DEC 372 | -10/Exiles | Discovered new exit (range 10) 376 | -10/Exiles | Entered Mines 399 | -9/Mines | Discovered new exit (range 13) 405 | -9/Mines | Entered Materials 405 | -8/Materials | Evolved 4 slots: Power x4 451 | -8/Materials | Met 7R-MNS 470 | -8/Materials | Discovered new exit (range 11) 475 | -8/Materials | Entered Factory 475 | -7/Factory | Evolved 2 slots: Power x2 500 | -7/Factory | Identified exit to DSF 610 | -7/Factory | Discovered new exit (range 11) 615 | -7/Factory | Entered another Factory area 615 | -6/Factory | Evolved 2 slots: Power x2 727 | -6/Factory | Discovered new exit (range 3) 728 | -6/Factory | Entered another Factory area 728 | -5/Factory | Evolved 2 slots: Power x2 1026 | -5/Factory | Discovered new exit (range 12) 1032 | -5/Factory | Entered Upper Caves 1063 | -5/Upper Caves | Spotted B-75 Beast 1103 | -5/Upper Caves | Learned 4 Factory zone layouts 1157 | -5/Upper Caves | Encountered a Warlord checkpoint 1212 | -5/Upper Caves | Attracted the attention of an 0b10 checkpoint 1213 | -5/Upper Caves | Discovered new exit (range 12) 1219 | -5/Upper Caves | Entered another Upper Caves area 1228 | -5/Upper Caves | Core integrity fell below 50% 1277 | -5/Upper Caves | Core integrity fell below 20% 1289 | -5/Upper Caves | Spotted B-75 Beast 1290 | -5/Upper Caves | Discovered new exit (range 12) 1290 | -5/Upper Caves | Destroyed by B-75 Beast with Heavy Machine Gun Last Messages --------------- 01103_ Acquired derelict log, extracted data. Data stored: Factory zone layouts (x4). 01157_ VI-HXL(M): "You haven't seen any Assembled, have you?" 01170_ Critical hit (Burn: +37). 01212_ Y-64 Sentinel: "INTERCEPTING UNREGISTERED DERELICT." 01212_ Critical hit (Burn: +37). 01213_ EXIT=FOUND 01214_ Penetrated by Slug. 01216_ P-70 Sage destroyed. 01217_ Slug penetrates Wall. LOCATION=UNKNOWN GOAL=ESCAPE 01225_ Penetrated by Slug. 01274_ Slug penetrates Wall. 01274_ Penetrated by Slug. 01275_ Slammed into G-50 Soldier. 01276_ Destabilizing: Core damaged (-50). 01290_ EXIT=FOUND Map ----- +----------------------------------------------------+ | ??????????????????????????????????????????? | | ??????????????????????????????????????????? | | ??????????????????????????????????????????? | | ??????????????????????????????????????????? | | ??????????????????????????????????????????? | | ??????????????????????????????????????????? | | ??????????????????????????????????????????? | | ???????????????????????????????????????? ?? | | ????????????????????# ???????????????### | | ???????????????????# ###??????????? | | ??????????????????? ?????????? | | ??????????????????? ?????????? | | ??????????????????? ?????????? | | ?????????????????? BB?????????? | | ?????????????????? B??????????? | | ??????????????????# ???????????# | | ???????????????????# ???????????# | | ???????????????##??# ###????????# | | ??????????????## ### ?######## | | ??????????????# ## ## | | ???????????????# #???# | | ???????????????# #???# #### | | ???????????????# #???# ##??# | | ???????????????# ###### ##???# | | ???????????????## # #????# | | ????????????????# @ # #????## | | ????????????????# # #### #?????#### | | ????????????????# % # #??#####????????# | | ???????????????? ## #??????????????##% | | ??????????????? ## ?????????######% | | ?????????????? # # ### ????????## ## | | ?????????????# # #? ???????# ## | | ?????????????### ? ###???????# ##### | | ??????????????? ?#??????????## ##???# | | ??????????????? ? ?????????????#####????? | | ?????????????? #? ??????????????????????? | | ??????????????#??#